[Event "*** Titled Tuesday Blitz"]
[Site "Chess.com"]
[Date "2020.02.04"]
[Round "6"]
[White "AndrewDGreen"]
[Black "hypert"]
[Result "1-0"]
[WhiteElo "2247"]
[BlackElo "2449"]
[TimeControl "180+2"]
[EndTime "14:19:58 PST"]
[Termination "AndrewDGreen won by resignation"]

1. d4 {[%clk 0:03:01.9]} 1... Nf6 {[%clk 0:03:00.8]} 2. Nf3 {[%clk 0:03:02.5]}
2... d5 {[%clk 0:03:01.7]} 3. Bf4 {[%clk 0:03:03.1]} 3... c5 {[%clk 0:03:00.5]}
4. e3 {[%clk 0:03:04.2]} 4... Nc6 {[%clk 0:03:01.2]} 5. Nbd2 {[%clk 0:03:04.8]}
5... cxd4 {[%clk 0:02:57.8]} 6. exd4 {[%clk 0:03:05.4]} 6... Bf5 {[%clk
0:02:59]} 7. c3 {[%clk 0:03:04.7]} 7... e6 {[%clk 0:03:00.3]} 8. Qb3 {[%clk
0:02:58.9]} 8... Qc8 {[%clk 0:02:54.3]} 9. Nh4 {[%clk 0:02:59.6]} 9... Bg4
{[%clk 0:02:54]} 10. h3 {[%clk 0:02:58]} 10... Bh5 {[%clk 0:02:55.3]} 11. g4
{[%clk 0:02:58]} 11... Bg6 {[%clk 0:02:56.6]} 12. Nxg6 {[%clk 0:02:58.4]} 12...
hxg6 {[%clk 0:02:58.5]} 13. Be2 {[%clk 0:02:51]} 13... Be7 {[%clk 0:02:46.2]}
14. Qd1 {[%clk 0:02:20.7]} 14... Nd7 {[%clk 0:02:43]} 15. Bd3 {[%clk 0:02:12.3]}
15... Qd8 {[%clk 0:02:27.7]} 16. Qe2 {[%clk 0:02:06.3]} 16... Bg5 {[%clk
0:02:17.9]} 17. Bg3 {[%clk 0:01:37.4]} 17... Bh4 {[%clk 0:02:16.7]} 18. Bf4
{[%clk 0:01:17.3]} 18... Rc8 {[%clk 0:02:11]} 19. Nf3 {[%clk 0:00:59.7]} 19...
Be7 {[%clk 0:02:11.7]} 20. a3 {[%clk 0:00:54.7]} 20... Nf6 {[%clk 0:02:06.7]}
21. Ne5 {[%clk 0:00:52.2]} 21... Qb6 {[%clk 0:01:58.3]} 22. Kf1 {[%clk
0:00:42.2]} 22... a6 {[%clk 0:01:54.1]} 23. Re1 {[%clk 0:00:42.2]} 23... Na5
{[%clk 0:01:49.7]} 24. Kg2 {[%clk 0:00:37.1]} 24... Nd7 {[%clk 0:01:48.6]} 25.
Bb1 {[%clk 0:00:18.3]} 25... Nc4 {[%clk 0:01:44.6]} 26. Nxc4 {[%clk 0:00:15.7]}
26... Rxc4 {[%clk 0:01:43.3]} 27. Qd2 {[%clk 0:00:07.7]} 27... Rc8 {[%clk
0:01:39.2]} 28. Re2 {[%clk 0:00:08.7]} 28... Bd6 {[%clk 0:01:36]} 29. Rhe1
{[%clk 0:00:08.3]} 29... Bxf4 {[%clk 0:01:10.4]} 30. Qxf4 {[%clk 0:00:10.2]}
30... Rc6 {[%clk 0:01:11.7]} 31. Qf3 {[%clk 0:00:05.8]} 31... O-O {[%clk
0:00:58]} 32. h4 {[%clk 0:00:06.3]} 32... Qd8 {[%clk 0:00:58.2]} 33. h5 {[%clk
0:00:03.9]} 33... gxh5 {[%clk 0:00:55.7]} 34. Rh1 {[%clk 0:00:04.4]} 34... Nf6
{[%clk 0:00:51.9]} 35. g5 {[%clk 0:00:03.6]} 35... Ne4 {[%clk 0:00:49.8]} 36.
Rxe4 {[%clk 0:00:03.3]} 36... dxe4 {[%clk 0:00:35.7]} 37. Qxh5 {[%clk
0:00:03.8]} 37... f5 {[%clk 0:00:15.7]} 38. g6 {[%clk 0:00:05.1]} 38... Qg5+
{[%clk 0:00:14.2]} 39. Qxg5 {[%clk 0:00:06.1]} 39... Rf6 {[%clk 0:00:15.8]} 40.
Ba2 {[%clk 0:00:05.7]} 40... Kf8 {[%clk 0:00:16]} 41. Rh8+ {[%clk 0:00:06.2]}
41... Ke7 {[%clk 0:00:17.6]} 42. Rh7 {[%clk 0:00:07.4]} 42... Kf8 {[%clk
0:00:18]} 43. Qh5 {[%clk 0:00:08.1]} 43... f4 {[%clk 0:00:18.4]} 44. Rh8+ {[%clk
0:00:09.2]} 44... Ke7 {[%clk 0:00:20]} 45. d5 {[%clk 0:00:10.5]} 45... f3+
{[%clk 0:00:21.9]} 46. Kg3 {[%clk 0:00:10.9]} 46... exd5 {[%clk 0:00:22.6]} 47.
Bxd5 {[%clk 0:00:12.3]} 47... Rxg6+ {[%clk 0:00:24.2]} 48. Kh3 {[%clk
0:00:11.9]} 48... Rcf6 {[%clk 0:00:26.1]} 49. Bxe4 {[%clk 0:00:12.5]} 49... Rh6
{[%clk 0:00:27.5]} 50. Rxh6 {[%clk 0:00:12.1]} 50... Rxh6 {[%clk 0:00:29.4]} 51.
Qxh6 {[%clk 0:00:13.6]} 51... gxh6 {[%clk 0:00:31.1]} 52. Bxb7 {[%clk
0:00:14.6]} 52... Kd6 {[%clk 0:00:33]} 53. Bxa6 {[%clk 0:00:15.7]} 53... Kc5
{[%clk 0:00:34.4]} 54. Bb7 {[%clk 0:00:17]} 54... Kc4 {[%clk 0:00:35.2]} 55.
Bxf3 {[%clk 0:00:18.1]} 55... Kb3 {[%clk 0:00:37]} 56. Be4 {[%clk 0:00:19.1]}
56... Kxb2 {[%clk 0:00:37.8]} 57. c4 {[%clk 0:00:20.6]} 57... Kc3 {[%clk
0:00:39.7]} 58. c5 {[%clk 0:00:22]} 58... Kd4 {[%clk 0:00:41.3]} 59. c6 {[%clk
0:00:23.5]} 1-0

[Event "*** Titled Tuesday Blitz"]
[Site "Chess.com"]
[Date "2020.02.04"]
[Round "6"]
[White "karinachess1"]
[Black "Irishchessman16"]
[Result "1-0"]
[WhiteElo "2490"]
[BlackElo "2259"]
[TimeControl "180+2"]
[EndTime "14:19:59 PST"]
[Termination "karinachess1 won by resignation"]

1. c4 {[%clk 0:03:01.9]} 1... e5 {[%clk 0:02:52.4]} 2. Nc3 {[%clk 0:03:01.6]}
2... Bb4 {[%clk 0:02:52.9]} 3. Qc2 {[%clk 0:03:00.9]} 3... d6 {[%clk 0:02:51.5]}
4. e3 {[%clk 0:02:55.7]} 4... c5 {[%clk 0:02:47.9]} 5. Nd5 {[%clk 0:02:49.3]}
5... Nc6 {[%clk 0:02:46.8]} 6. g3 {[%clk 0:02:45.3]} 6... Nge7 {[%clk
0:02:46.9]} 7. Bg2 {[%clk 0:02:43.5]} 7... O-O {[%clk 0:02:47.6]} 8. Ne2 {[%clk
0:02:41]} 8... Nxd5 {[%clk 0:02:46.9]} 9. cxd5 {[%clk 0:02:39.3]} 9... Ne7
{[%clk 0:02:25.3]} 10. O-O {[%clk 0:02:39.4]} 10... f5 {[%clk 0:02:10.7]} 11. f4
{[%clk 0:02:33.3]} 11... e4 {[%clk 0:02:10.3]} 12. d3 {[%clk 0:02:34.2]} 12...
exd3 {[%clk 0:02:08.9]} 13. Qxd3 {[%clk 0:02:36.1]} 13... a6 {[%clk 0:01:58.8]}
14. Nc3 {[%clk 0:02:36.6]} 14... b5 {[%clk 0:01:55.7]} 15. Bd2 {[%clk 0:02:31]}
15... c4 {[%clk 0:01:54.8]} 16. Qc2 {[%clk 0:02:28.4]} 16... Bb7 {[%clk
0:01:54.2]} 17. e4 {[%clk 0:02:27.1]} 17... Bxc3 {[%clk 0:01:35.3]} 18. Bxc3
{[%clk 0:02:26.8]} 18... fxe4 {[%clk 0:01:36.4]} 19. Bxe4 {[%clk 0:02:28.7]}
19... Qb6+ {[%clk 0:01:37.1]} 20. Rf2 {[%clk 0:02:25.7]} 20... g6 {[%clk
0:01:15.2]} 21. Rd1 {[%clk 0:02:22.4]} 21... Rae8 {[%clk 0:01:13.2]} 22. g4
{[%clk 0:01:41.4]} 22... Rxf4 {[%clk 0:00:50]} 23. Bd4 {[%clk 0:01:41.6]} 23...
Rxg4+ {[%clk 0:00:44.8]} 24. Kf1 {[%clk 0:01:01.5]} 24... Qc7 {[%clk 0:00:34.5]}
25. h3 {[%clk 0:00:31.1]} 25... Rf4 {[%clk 0:00:26.4]} 26. Rxf4 {[%clk
0:00:29.5]} 26... Nxd5 {[%clk 0:00:22.9]} 27. Bxd5+ {[%clk 0:00:26.3]} 27...
Bxd5 {[%clk 0:00:24.8]} 28. Qf2 {[%clk 0:00:26.6]} 28... Qd7 {[%clk 0:00:20.4]}
29. Qg3 {[%clk 0:00:22.2]} 29... c3 {[%clk 0:00:19.6]} 30. bxc3 {[%clk
0:00:21.1]} 30... Bc4+ {[%clk 0:00:17.8]} 31. Kg1 {[%clk 0:00:22.1]} 31... Qe6
{[%clk 0:00:16]} 32. Rf2 {[%clk 0:00:10.5]} 32... Qe4 {[%clk 0:00:11.8]} 33. h4
{[%clk 0:00:10.4]} 33... d5 {[%clk 0:00:03]} 34. Kh2 {[%clk 0:00:10.6]} 34...
Be2 {[%clk 0:00:03]} 35. Rg1 {[%clk 0:00:11.3]} 35... Bh5 {[%clk 0:00:03.1]} 36.
Qf4 {[%clk 0:00:11.4]} 36... Qe6 {[%clk 0:00:04.1]} 37. Qf6 {[%clk 0:00:11.1]}
37... Qxf6 {[%clk 0:00:05]} 38. Rxf6 {[%clk 0:00:11.7]} 38... Re2+ {[%clk
0:00:06.2]} 39. Rf2 {[%clk 0:00:13.1]} 39... Re4 {[%clk 0:00:08.1]} 40. Kg3
{[%clk 0:00:11.5]} 40... Rg4+ {[%clk 0:00:09.2]} 41. Kh2 {[%clk 0:00:12.9]}
41... Rxh4+ {[%clk 0:00:10.5]} 42. Kg2 {[%clk 0:00:14.4]} 42... Rg4+ {[%clk
0:00:07.9]} 43. Kf1 {[%clk 0:00:15.1]} 43... Re4 {[%clk 0:00:08.5]} 44. Rg5
{[%clk 0:00:15.8]} 44... Bd1 {[%clk 0:00:07.7]} 45. Rxd5 {[%clk 0:00:15.6]}
45... h5 {[%clk 0:00:06.2]} 46. Rd8+ {[%clk 0:00:16.2]} 1-0

[Event "*** Titled Tuesday Blitz"]
[Site "Chess.com"]
[Date "2020.02.04"]
[Round "6"]
[White "platy3"]
[Black "Roman_Ovetchkin"]
[Result "1/2-1/2"]
[WhiteElo "2879"]
[BlackElo "2728"]
[TimeControl "180+2"]
[EndTime "14:20:08 PST"]
[Termination "Game drawn by agreement"]

1. e4 {[%clk 0:01:23.4]} 1... c6 {[%clk 0:03:00.3]} 2. Nf3 {[%clk 0:01:23.4]}
2... d5 {[%clk 0:03:02.2]} 3. Nc3 {[%clk 0:01:23.8]} 3... Nf6 {[%clk 0:03:02.4]}
4. e5 {[%clk 0:01:23.9]} 4... Ne4 {[%clk 0:03:03.3]} 5. Ne2 {[%clk 0:01:25.5]}
5... Qb6 {[%clk 0:03:04.4]} 6. d4 {[%clk 0:01:27.1]} 6... e6 {[%clk 0:03:05.4]}
7. Ng3 {[%clk 0:01:28.7]} 7... c5 {[%clk 0:03:06]} 8. Bd3 {[%clk 0:01:30]} 8...
Nxg3 {[%clk 0:03:06.4]} 9. fxg3 {[%clk 0:01:31.6]} 9... cxd4 {[%clk 0:03:07.3]}
10. O-O {[%clk 0:01:32.3]} 10... Nc6 {[%clk 0:03:07.8]} 11. a3 {[%clk
0:01:33.9]} 11... Be7 {[%clk 0:03:03.5]} 12. b4 {[%clk 0:01:29.1]} 12... a6
{[%clk 0:03:04]} 13. Qe2 {[%clk 0:01:27.8]} 13... O-O {[%clk 0:02:33.2]} 14. Bg5
{[%clk 0:01:21.3]} 14... f6 {[%clk 0:02:04.1]} 15. Bd2 {[%clk 0:01:20.5]} 15...
Bd7 {[%clk 0:01:57.5]} 16. g4 {[%clk 0:01:16.7]} 16... fxe5 {[%clk 0:01:17.6]}
17. Nxe5 {[%clk 0:01:15.6]} 17... Nxe5 {[%clk 0:01:17.6]} 18. Qxe5 {[%clk
0:01:15.3]} 18... Bf6 {[%clk 0:01:13]} 19. Qg3 {[%clk 0:01:13.5]} 19... g6
{[%clk 0:01:01.3]} 20. Bf4 {[%clk 0:01:04.1]} 20... Bg7 {[%clk 0:00:52.1]} 21.
Be5 {[%clk 0:00:57.3]} 21... Rxf1+ {[%clk 0:00:40.6]} 22. Rxf1 {[%clk
0:00:57.4]} 22... Rf8 {[%clk 0:00:42.2]} 23. Rxf8+ {[%clk 0:00:52.2]} 23... Bxf8
{[%clk 0:00:41.6]} 24. Qf4 {[%clk 0:00:50.4]} 24... Qd8 {[%clk 0:00:41]} 25.
Bxd4 {[%clk 0:00:44.1]} 25... Bg7 {[%clk 0:00:42.1]} 26. Bxg7 {[%clk 0:00:41]}
26... Kxg7 {[%clk 0:00:44]} 27. Qd6 {[%clk 0:00:42.6]} 27... Qe8 {[%clk
0:00:38]} 28. g5 {[%clk 0:00:31.1]} 28... Kg8 {[%clk 0:00:35.1]} 29. h4 {[%clk
0:00:30.5]} 29... Bc6 {[%clk 0:00:36]} 30. c4 {[%clk 0:00:27.1]} 30... Qd7
{[%clk 0:00:32.8]} 31. Qb8+ {[%clk 0:00:26]} 31... Qe8 {[%clk 0:00:33.8]} 32.
Qxe8+ {[%clk 0:00:18.8]} 32... Bxe8 {[%clk 0:00:33.9]} 33. cxd5 {[%clk
0:00:20.7]} 33... exd5 {[%clk 0:00:34.4]} 34. Kf2 {[%clk 0:00:22.3]} 34... Kf7
{[%clk 0:00:35.5]} 35. Ke3 {[%clk 0:00:23.4]} 35... Ke6 {[%clk 0:00:36.4]} 36.
Kd4 {[%clk 0:00:23.3]} 36... Bb5 {[%clk 0:00:35.2]} 37. Bc2 {[%clk 0:00:16.7]}
37... Bc4 {[%clk 0:00:34.7]} 38. a4 {[%clk 0:00:16.2]} 38... b6 {[%clk
0:00:32.3]} 39. Bd1 {[%clk 0:00:14.5]} 39... a5 {[%clk 0:00:32.6]} 40. bxa5
{[%clk 0:00:06.7]} 40... bxa5 {[%clk 0:00:34.5]} 41. g4 {[%clk 0:00:06.2]} 41...
Kd6 {[%clk 0:00:35.6]} 42. Bc2 {[%clk 0:00:02.8]} 42... Be2 {[%clk 0:00:35.8]}
43. h5 {[%clk 0:00:04.4]} 43... gxh5 {[%clk 0:00:33.1]} 44. gxh5 {[%clk
0:00:04.2]} 44... Bxh5 {[%clk 0:00:34.1]} 45. Bxh7 {[%clk 0:00:05.8]} 45... Bd1
{[%clk 0:00:32.5]} 46. g6 {[%clk 0:00:03.3]} 46... Bc2 {[%clk 0:00:33.5]} 47.
Bg8 {[%clk 0:00:04.8]} 47... Bxg6 {[%clk 0:00:34.2]} 48. Bxd5 {[%clk 0:00:06.4]}
48... Bc2 {[%clk 0:00:35.2]} 49. Be4 {[%clk 0:00:04]} 49... Bxa4 {[%clk
0:00:35.4]} 50. Kc3 {[%clk 0:00:05.3]} 50... Kc5 {[%clk 0:00:35.9]} 51. Bc6
{[%clk 0:00:05.9]} 51... Bxc6 {[%clk 0:00:36]} 52. Kb2 {[%clk 0:00:07.2]}
1/2-1/2

[Event "*** Titled Tuesday Blitz"]
[Site "Chess.com"]
[Date "2020.02.04"]
[Round "6"]
[White "esteban062000"]
[Black "bazar-wokzal"]
[Result "0-1"]
[WhiteElo "2183"]
[BlackElo "2550"]
[TimeControl "180+2"]
[EndTime "14:20:10 PST"]
[Termination "bazar-wokzal won by resignation"]

1. Nf3 {[%clk 0:03:01.9]} 1... c5 {[%clk 0:03:00.1]} 2. c4 {[%clk 0:03:02.5]}
2... g6 {[%clk 0:02:59.6]} 3. g3 {[%clk 0:03:02.2]} 3... Bg7 {[%clk 0:02:58.9]}
4. Bg2 {[%clk 0:03:03.5]} 4... Nc6 {[%clk 0:02:59.5]} 5. O-O {[%clk 0:03:04.4]}
5... d6 {[%clk 0:03:00.8]} 6. e3 {[%clk 0:03:05.5]} 6... Nf6 {[%clk 0:02:58]} 7.
d4 {[%clk 0:03:05.7]} 7... Bg4 {[%clk 0:02:54.2]} 8. d5 {[%clk 0:02:57.6]} 8...
Ne5 {[%clk 0:02:52.1]} 9. Nbd2 {[%clk 0:02:40.9]} 9... O-O {[%clk 0:02:50.8]}
10. Qc2 {[%clk 0:02:34.9]} 10... Nxf3+ {[%clk 0:02:44.8]} 11. Nxf3 {[%clk
0:02:31.7]} 11... Bf5 {[%clk 0:02:40.4]} 12. Qe2 {[%clk 0:02:30]} 12... Be4
{[%clk 0:02:38.9]} 13. Bd2 {[%clk 0:02:17]} 13... Nd7 {[%clk 0:02:31.5]} 14. Bc3
{[%clk 0:02:13.3]} 14... Bxc3 {[%clk 0:02:29.3]} 15. bxc3 {[%clk 0:02:15.2]}
15... Qa5 {[%clk 0:02:29.9]} 16. Rfc1 {[%clk 0:01:38.7]} 16... Qa6 {[%clk
0:02:30.4]} 17. Nd2 {[%clk 0:01:26.2]} 17... Bxg2 {[%clk 0:02:30.3]} 18. Kxg2
{[%clk 0:01:28.1]} 18... Rfb8 {[%clk 0:02:24.9]} 19. Rcb1 {[%clk 0:01:26.8]}
19... Nb6 {[%clk 0:02:14.9]} 20. Rb5 {[%clk 0:01:17.7]} 20... Qa4 {[%clk
0:02:15.6]} 21. Rb2 {[%clk 0:00:57.8]} 21... Nd7 {[%clk 0:02:02.1]} 22. Rab1
{[%clk 0:00:51.5]} 22... b6 {[%clk 0:02:00.8]} 23. e4 {[%clk 0:00:50.6]} 23...
Re8 {[%clk 0:01:53.8]} 24. f4 {[%clk 0:00:50.4]} 24... e6 {[%clk 0:01:53.9]} 25.
Qg4 {[%clk 0:00:45.5]} 25... Nf6 {[%clk 0:01:47]} 26. Qg5 {[%clk 0:00:43.1]}
26... Kg7 {[%clk 0:01:47.6]} 27. e5 {[%clk 0:00:44.4]} 27... dxe5 {[%clk
0:01:47.2]} 28. fxe5 {[%clk 0:00:46.3]} 28... Ng8 {[%clk 0:01:44.1]} 29. d6
{[%clk 0:00:25.7]} 29... Qc6+ {[%clk 0:01:33.6]} 30. Kg1 {[%clk 0:00:23.5]}
30... f6 {[%clk 0:01:30.1]} 31. Qf4 {[%clk 0:00:21.2]} 31... Rf8 {[%clk
0:01:29.6]} 32. Ne4 {[%clk 0:00:20.9]} 32... Rad8 {[%clk 0:01:23.1]} 33. Rf1
{[%clk 0:00:21.1]} 33... f5 {[%clk 0:01:15.9]} 34. Ng5 {[%clk 0:00:21.8]} 34...
Rfe8 {[%clk 0:01:11.7]} 35. Rd2 {[%clk 0:00:22.1]} 35... h6 {[%clk 0:01:11]} 36.
Nf3 {[%clk 0:00:21.7]} 36... Rd7 {[%clk 0:00:32.8]} 37. Rfd1 {[%clk 0:00:21.6]}
37... Red8 {[%clk 0:00:31.9]} 38. h4 {[%clk 0:00:22.7]} 38... Rf7 {[%clk
0:00:24.9]} 39. d7 {[%clk 0:00:21]} 39... Rfxd7 {[%clk 0:00:23.7]} 40. Rd6
{[%clk 0:00:22.1]} 40... Rxd6 {[%clk 0:00:24]} 41. exd6 {[%clk 0:00:23]} 41...
Nf6 {[%clk 0:00:21.3]} 42. Ne5 {[%clk 0:00:21.6]} 42... Qe4 {[%clk 0:00:21.1]}
43. Qxe4 {[%clk 0:00:21.8]} 43... Nxe4 {[%clk 0:00:15.1]} 44. d7 {[%clk
0:00:22.6]} 44... Nf6 {[%clk 0:00:11.2]} 45. Rd6 {[%clk 0:00:18.5]} 45... g5
{[%clk 0:00:11.5]} 46. Rxe6 {[%clk 0:00:19.9]} 46... Nxd7 {[%clk 0:00:11.6]} 47.
Re7+ {[%clk 0:00:20.5]} 47... Kf6 {[%clk 0:00:12.2]} 48. Rxd7 {[%clk 0:00:22.4]}
48... Re8 {[%clk 0:00:13.1]} 49. Rd8 {[%clk 0:00:24.3]} 49... Rxd8 {[%clk
0:00:13.4]} 50. Nc6 {[%clk 0:00:23.7]} 50... Rd7 {[%clk 0:00:13]} 51. hxg5+
{[%clk 0:00:24.5]} 51... hxg5 {[%clk 0:00:13.2]} 52. Kg2 {[%clk 0:00:25]} 52...
Ke6 {[%clk 0:00:14.2]} 53. Nb8 {[%clk 0:00:26.1]} 53... Rd2+ {[%clk 0:00:13.5]}
54. Kf3 {[%clk 0:00:26.9]} 54... Rxa2 {[%clk 0:00:15.2]} 55. Na6 {[%clk
0:00:27]} 55... Rxa6 {[%clk 0:00:15.5]} 0-1

[Event "*** Titled Tuesday Blitz"]
[Site "Chess.com"]
[Date "2020.02.04"]
[Round "6"]
[White "MikaelyanArman"]
[Black "Sanan_Sjugirov"]
[Result "1/2-1/2"]
[WhiteElo "2754"]
[BlackElo "2838"]
[TimeControl "180+2"]
[EndTime "14:20:12 PST"]
[Termination "Game drawn by repetition"]

1. d4 {[%clk 0:03:01.9]} 1... Nf6 {[%clk 0:03:00.4]} 2. c4 {[%clk 0:03:02.8]}
2... g6 {[%clk 0:03:01.6]} 3. Nc3 {[%clk 0:03:03.4]} 3... d5 {[%clk 0:03:03.2]}
4. Nf3 {[%clk 0:03:04.4]} 4... Bg7 {[%clk 0:03:04]} 5. h4 {[%clk 0:03:05.7]}
5... c6 {[%clk 0:02:58.1]} 6. cxd5 {[%clk 0:03:05.7]} 6... cxd5 {[%clk
0:02:58.9]} 7. Bf4 {[%clk 0:03:06.6]} 7... O-O {[%clk 0:02:47]} 8. e3 {[%clk
0:03:07.4]} 8... Nc6 {[%clk 0:02:47.2]} 9. Ne5 {[%clk 0:03:08.6]} 9... Qb6
{[%clk 0:02:38.2]} 10. Qb3 {[%clk 0:03:09]} 10... Qa5 {[%clk 0:02:28.2]} 11. Be2
{[%clk 0:02:57.5]} 11... Bf5 {[%clk 0:02:13.8]} 12. O-O {[%clk 0:02:32.5]} 12...
Nxe5 {[%clk 0:01:09.4]} 13. dxe5 {[%clk 0:02:12.7]} 13... Ne4 {[%clk 0:00:59.1]}
14. Qxd5 {[%clk 0:02:03.9]} 14... Qb4 {[%clk 0:00:58.6]} 15. Nxe4 {[%clk
0:01:38.8]} 15... Bxe4 {[%clk 0:01:00.5]} 16. Qb5 {[%clk 0:01:39]} 16... Qxb5
{[%clk 0:00:59.8]} 17. Bxb5 {[%clk 0:01:40.9]} 17... Rac8 {[%clk 0:00:52.5]} 18.
Rac1 {[%clk 0:01:39.8]} 18... a6 {[%clk 0:00:44.6]} 19. Bd7 {[%clk 0:01:37.9]}
19... Rxc1 {[%clk 0:00:30]} 20. Rxc1 {[%clk 0:01:39.8]} 20... Rd8 {[%clk
0:00:30.8]} 21. Rc8 {[%clk 0:01:32.5]} 21... Rxc8 {[%clk 0:00:31.7]} 22. Bxc8
{[%clk 0:01:34.4]} 22... e6 {[%clk 0:00:29]} 23. Bd7 {[%clk 0:01:26.3]} 23...
Bd5 {[%clk 0:00:29.7]} 24. a4 {[%clk 0:01:20.3]} 24... f6 {[%clk 0:00:30.1]} 25.
e4 {[%clk 0:00:52.5]} 25... Bb3 {[%clk 0:00:25.4]} 26. a5 {[%clk 0:00:48]} 26...
fxe5 {[%clk 0:00:21.3]} 27. Be3 {[%clk 0:00:49.1]} 27... Bf6 {[%clk 0:00:17.9]}
28. Bc8 {[%clk 0:00:44.6]} 28... Bxh4 {[%clk 0:00:15.7]} 29. Bxb7 {[%clk
0:00:45.3]} 29... Bc4 {[%clk 0:00:17.1]} 30. b4 {[%clk 0:00:43.7]} 30... Bb5
{[%clk 0:00:14.1]} 31. Bc5 {[%clk 0:00:41.6]} 31... Kf7 {[%clk 0:00:13.5]} 32.
Bd6 {[%clk 0:00:39.1]} 32... Be7 {[%clk 0:00:12.2]} 33. Bc5 {[%clk 0:00:15]}
33... Bxc5 {[%clk 0:00:11.9]} 34. bxc5 {[%clk 0:00:16.9]} 34... Ke7 {[%clk
0:00:13.4]} 35. c6 {[%clk 0:00:15.5]} 35... Kd6 {[%clk 0:00:12]} 36. Bc8 {[%clk
0:00:12.2]} 36... Bxc6 {[%clk 0:00:06.3]} 37. Bxa6 {[%clk 0:00:12.1]} 37... Bxe4
{[%clk 0:00:07.6]} 38. f3 {[%clk 0:00:11.3]} 38... Bd5 {[%clk 0:00:07.6]} 39.
Bd3 {[%clk 0:00:11.4]} 39... Kc5 {[%clk 0:00:07.5]} 40. Kf2 {[%clk 0:00:11.8]}
40... Kb4 {[%clk 0:00:07.2]} 41. a6 {[%clk 0:00:12.4]} 41... Ka5 {[%clk
0:00:08.4]} 42. Ke3 {[%clk 0:00:12.1]} 42... Kb6 {[%clk 0:00:09]} 43. Be2 {[%clk
0:00:08.6]} 43... g5 {[%clk 0:00:09.3]} 44. g4 {[%clk 0:00:05.4]} 44... h6
{[%clk 0:00:10.3]} 45. Bd3 {[%clk 0:00:06.5]} 45... Ka7 {[%clk 0:00:11.1]} 46.
Kf2 {[%clk 0:00:05.6]} 46... Bc6 {[%clk 0:00:10.9]} 47. Ke3 {[%clk 0:00:05.8]}
47... Kb6 {[%clk 0:00:12.2]} 48. Bc4 {[%clk 0:00:06.5]} 48... Bd5 {[%clk
0:00:11.9]} 49. Bd3 {[%clk 0:00:07.3]} 49... Ba8 {[%clk 0:00:12.6]} 50. Be4
{[%clk 0:00:07]} 50... Bd5 {[%clk 0:00:11.6]} 51. Bd3 {[%clk 0:00:06.7]} 1/2-1/2

[Event "*** Titled Tuesday Blitz"]
[Site "Chess.com"]
[Date "2020.02.04"]
[Round "6"]
[White "politeplayer"]
[Black "TheBigBadChessDad"]
[Result "1/2-1/2"]
[WhiteElo "2148"]
[BlackElo "2310"]
[TimeControl "180+2"]
[EndTime "14:20:26 PST"]
[Termination "Game drawn - insufficient material"]

1. e4 {[%clk 0:03:01.9]} 1... e5 {[%clk 0:03:00.8]} 2. f4 {[%clk 0:03:01.3]}
2... d5 {[%clk 0:03:01]} 3. exd5 {[%clk 0:03:00.7]} 3... c6 {[%clk 0:03:00.5]}
4. dxc6 {[%clk 0:02:49.3]} 4... Nxc6 {[%clk 0:02:58.4]} 5. Bb5 {[%clk
0:02:44.3]} 5... exf4 {[%clk 0:02:56.5]} 6. Bxc6+ {[%clk 0:02:38]} 6... bxc6
{[%clk 0:02:56.4]} 7. Qf3 {[%clk 0:02:37.6]} 7... Qd5 {[%clk 0:02:40.4]} 8. Qxd5
{[%clk 0:02:29]} 8... cxd5 {[%clk 0:02:41]} 9. Nc3 {[%clk 0:02:30.3]} 9... Nf6
{[%clk 0:02:37.4]} 10. Nb5 {[%clk 0:02:27.6]} 10... Kd7 {[%clk 0:02:12.1]} 11.
Nf3 {[%clk 0:02:25.8]} 11... Kc6 {[%clk 0:01:56.1]} 12. a4 {[%clk 0:02:21]}
12... Be6 {[%clk 0:01:49.9]} 13. Nfd4+ {[%clk 0:02:16.7]} 13... Kd7 {[%clk
0:01:45.6]} 14. O-O {[%clk 0:02:05.7]} 14... a6 {[%clk 0:01:46.6]} 15. Na3
{[%clk 0:01:58]} 15... Bc5 {[%clk 0:01:44.2]} 16. c3 {[%clk 0:01:58]} 16...
Bxd4+ {[%clk 0:01:40.8]} 17. cxd4 {[%clk 0:01:58.7]} 17... Nh5 {[%clk 0:01:37]}
18. d3 {[%clk 0:01:53.3]} 18... g5 {[%clk 0:01:36.5]} 19. Bd2 {[%clk 0:01:44.7]}
19... Bf5 {[%clk 0:01:28.1]} 20. Rfd1 {[%clk 0:01:37.4]} 20... Bxd3 {[%clk
0:01:25.4]} 21. g4 {[%clk 0:01:30.1]} 21... Nf6 {[%clk 0:00:58]} 22. Bxf4 {[%clk
0:01:26]} 22... Be2 {[%clk 0:00:47.4]} 23. Be5 {[%clk 0:01:19.6]} 23... Nxg4
{[%clk 0:00:36.7]} 24. Re1 {[%clk 0:01:11.2]} 24... Nxe5 {[%clk 0:00:34.7]} 25.
dxe5 {[%clk 0:01:07]} 25... Bg4 {[%clk 0:00:26.9]} 26. Rad1 {[%clk 0:01:04.3]}
26... Be6 {[%clk 0:00:26.7]} 27. Nc4 {[%clk 0:01:05.6]} 27... Rab8 {[%clk
0:00:25.6]} 28. a5 {[%clk 0:01:03.7]} 28... Ke7 {[%clk 0:00:17.6]} 29. Nb6
{[%clk 0:00:58.4]} 29... Rhd8 {[%clk 0:00:16.3]} 30. Rc1 {[%clk 0:00:58.9]}
30... Rb7 {[%clk 0:00:16.2]} 31. Rc3 {[%clk 0:00:56.1]} 31... d4 {[%clk
0:00:17.2]} 32. Rg3 {[%clk 0:00:49.4]} 32... g4 {[%clk 0:00:16.9]} 33. Rd1
{[%clk 0:00:49.6]} 33... Rc7 {[%clk 0:00:15.2]} 34. Rgd3 {[%clk 0:00:48]} 34...
Rc2 {[%clk 0:00:16.2]} 35. Rxd4 {[%clk 0:00:47.7]} 35... Rxd4 {[%clk 0:00:16.5]}
36. Rxd4 {[%clk 0:00:48.4]} 36... Rxb2 {[%clk 0:00:17.9]} 37. Nd5+ {[%clk
0:00:45.6]} 37... Bxd5 {[%clk 0:00:18.5]} 38. Rxd5 {[%clk 0:00:46.3]} 38... Ra2
{[%clk 0:00:19.8]} 39. Rc5 {[%clk 0:00:42.7]} 39... h5 {[%clk 0:00:19.1]} 40. e6
{[%clk 0:00:41.4]} 40... Kxe6 {[%clk 0:00:18.6]} 41. Rxh5 {[%clk 0:00:37.2]}
41... f6 {[%clk 0:00:19.8]} 42. Rc5 {[%clk 0:00:34.8]} 42... Kf7 {[%clk
0:00:18]} 43. Rc4 {[%clk 0:00:30.6]} 43... Rxa5 {[%clk 0:00:15.9]} 44. Rxg4
{[%clk 0:00:30.2]} 44... Ra2 {[%clk 0:00:15.6]} 45. Rc4 {[%clk 0:00:28.4]} 45...
Kg6 {[%clk 0:00:15.9]} 46. h4 {[%clk 0:00:27.7]} 46... f5 {[%clk 0:00:15.4]} 47.
Rc5 {[%clk 0:00:25.1]} 47... a5 {[%clk 0:00:16]} 48. h5+ {[%clk 0:00:25.6]}
48... Kg5 {[%clk 0:00:12.5]} 49. h6 {[%clk 0:00:26.4]} 49... Kxh6 {[%clk
0:00:07.5]} 50. Rxf5 {[%clk 0:00:26.6]} 50... a4 {[%clk 0:00:08.7]} 51. Kf1
{[%clk 0:00:26]} 51... Kg6 {[%clk 0:00:08.2]} 52. Ra5 {[%clk 0:00:25]} 52... Kf6
{[%clk 0:00:09.6]} 53. Ke1 {[%clk 0:00:25.9]} 53... a3 {[%clk 0:00:09.1]} 54.
Kd1 {[%clk 0:00:26.5]} 54... Ke6 {[%clk 0:00:10.4]} 55. Kc1 {[%clk 0:00:26.4]}
55... Kd6 {[%clk 0:00:11.7]} 56. Kb1 {[%clk 0:00:26.5]} 56... Rb2+ {[%clk
0:00:13.1]} 57. Ka1 {[%clk 0:00:26.3]} 57... Rb3 {[%clk 0:00:13.6]} 58. Ka2
{[%clk 0:00:26.7]} 58... Rh3 {[%clk 0:00:13.6]} 59. Rxa3 {[%clk 0:00:27.4]}
59... Rxa3+ {[%clk 0:00:13]} 60. Kxa3 {[%clk 0:00:28.2]} 1/2-1/2